bitfinex/quotes_ETHUSD_20260312
["timestamp","ask_amount","ask_price","bid_price","bid_amount"]
[1773341500640,1.21749293,2053.4,2053.2,0.0011]
[1773341501378,2.55740659,2053.6,2053.2,0.0011]
[1773341501743,1.34,2053.6,2053.2,0.65592245]
[1773341502257,1.22944149,2053.8,2053.2,0.65592245]
[1773341502456,0.70444428,2053.7,2053.2,0.0011]
[1773341502661,1.21737436,2053.6,2053.2,0.0011]
[1773341503368,1.21737436,2053.6,2053.2,0.67451563]
[1773341503572,1.21735705,2053.7,2053.2,0.67451563]
[1773341504186,1.21735705,2053.7,2053.2,0.0011]
[1773341504348,0.70444428,2053.6,2053.2,0.0011]
[1773341504544,1.21743364,2053.5,2053.2,0.0011]
[1773341504848,1.344,2053.4,2053.0,0.0011]
[1773341505048,1.344,2053.4,2053.0,0.67451563]
[1773341505478,4.86949746,2053.7,2053.0,0.67451563]
[1773341505678,1.344,2053.6,2053.0,0.67451563]
[1773341505852,0.70444428,2053.5,2053.0,0.0011]
[1773341506372,0.70444428,2053.4,2052.7,0.0011]
[1773341506748,0.70444428,2053.2,2052.7,0.0011]
[1773341507372,0.70444428,2053.1,2052.3,0.01218171]
[1773341507671,0.70444428,2053.0,2052.3,0.01218171]
[1773341508176,0.70444428,2053.0,2052.3,1.90374095]
[1773341508378,0.70444428,2053.0,2052.3,1.23032532]
[1773341508554,1.346,2053.1,2052.4,0.67341563]
[1773341509152,2.56367517,2053.1,2052.5,1.89144242]
[1773341509956,1.346,2053.1,2052.6,0.67341563]
[1773341510151,1.348,2053.3,2053.0,0.0011]
[1773341511057,1.21734304,2053.7,2053.1,0.66708499]
[1773341511254,0.001,2053.5,2053.0,0.0011]
[1773341511668,0.01217866,2053.3,2053.0,1.21882408]
[1773341511863,0.01217866,2053.3,2053.0,1.88590907]
[1773341512464,0.01217866,2053.3,2053.0,0.0011]
[1773341512670,0.01217866,2053.3,2053.0,1.21882046]
[1773341512977,0.01217866,2053.3,2053.0,0.0011]
[1773341513480,1.23076008,2053.3,2053.0,0.0011]
[1773341514187,0.70127632,2053.2,2052.7,0.0011]
[1773341514888,0.001,2053.1,2052.7,1.21900471]
[1773341515057,1.352,2053.1,2052.7,1.21900471]
[1773341515254,0.001,2053.1,2052.7,0.0011]
[1773341515470,0.01217866,2053.3,2052.7,0.66818499]
[1773341517473,0.01217866,2053.3,2052.8,1.88493378]
[1773341517654,0.01217866,2053.3,2052.9,0.02421568]
[1773341519366,0.01217866,2053.3,2053.0,1.21773015]
[1773341520076,1.351,2053.5,2053.0,1.88481514]
[1773341520677,0.35199191,2053.8,2053.1,0.66708499]
[1773341520891,0.35199191,2053.8,2053.3,0.66708499]
[1773341521401,1.22913886,2054.3,2053.7,1.21731508]
[1773341521557,0.7124489,2054.3,2053.7,1.21731508]
[1773341521759,0.01217258,2054.3,2053.7,1.21731508]
[1773341521995,1.22913764,2054.3,2053.7,1.21731508]
[1773341522294,0.01217258,2054.3,2053.7,1.21731508]
[1773341522654,1.22913359,2054.3,2053.7,1.21731508]
[1773341523053,1.22913448,2054.3,2053.7,1.21731508]
[1773341523687,0.70027632,2054.2,2053.3,1.88463722]
[1773341523888,0.70027632,2054.2,2053.4,0.66708499]
[1773341524063,1.22913448,2054.3,2053.4,0.66708499]
[1773341524064,1.22915706,2054.3,2053.4,0.66708499]
[1773341524686,1.92943338,2054.3,2053.4,0.66708499]
[1773341525056,0.70027632,2054.2,2053.3,1.21755223]
[1773341525278,0.70027632,2054.2,2053.3,1.88463722]
[1773341526159,1.91735435,2054.1,2053.3,1.88463722]
[1773341526663,1.91735435,2054.1,2053.3,1.89681284]
[1773341528288,0.70027632,2054.0,2053.3,1.22972785]
[1773341529102,1.21707803,2054.1,2053.4,0.66708499]
[1773341529282,3.27432135,2054.2,2053.5,0.66708499]
[1773341529480,1.357,2054.2,2053.5,0.66708499]
[1773341530163,0.01217258,2054.3,2053.6,1.21737436]
[1773341530561,1.92942312,2054.3,2053.6,1.21737436]
[1773341531160,0.70027632,2054.2,2053.6,1.21737436]
[1773341531361,0.70027632,2054.1,2053.3,1.2296833]
[1773341531784,0.70027632,2054.1,2053.3,1.2297176]
[1773341532165,1.91741361,2054.0,2053.3,1.2297176]
[1773341533292,0.70027632,2053.9,2053.3,0.01217562]
[1773341534398,1.91753213,2053.8,2053.3,1.22972156]
[1773341534976,1.91753213,2053.8,2053.3,0.01217562]
[1773341535196,1.91753213,2053.8,2053.5,0.0011]
[1773341537101,0.70027632,2053.7,2053.3,0.01327562]
[1773341537597,0.70027632,2053.7,2053.0,1.21882994]
[1773341538598,2.05827632,2053.7,2053.1,0.04870683]
[1773341539502,1.21737436,2053.6,2053.1,1.2663504]
[1773341540069,1.91765068,2053.6,2053.0,0.0011]
[1773341540399,0.70027632,2053.5,2053.0,1.21882456]
[1773341541107,0.70027632,2053.5,2053.0,1.21881359]
[1773341541296,6.22744157,2053.7,2053.0,1.89504477]
[1773341541297,1.21734669,2053.7,2053.0,1.89504477]
[1773341542299,3.24295034,2053.8,2053.1,0.67623118]
[1773341542482,3.2429419,2053.8,2053.1,0.67623118]
[1773341543472,2.02568328,2053.8,2053.1,0.67623118]
[1773341543808,1.37117562,2053.8,2053.3,1.21755223]
[1773341544008,1.37117562,2053.8,2053.4,0.67623118]
[1773341544204,0.01217562,2053.8,2053.4,0.67623118]
[1773341544379,1.22943454,2053.8,2053.3,1.21755223]
[1773341544581,0.01217562,2053.8,2053.3,1.89378341]
[1773341545521,1.22943339,2053.8,2053.3,0.67623118]
[1773341545679,0.66668328,2053.8,2053.2,1.2175904]
[1773341545885,0.01217562,2053.8,2053.2,0.67623118]
[1773341546392,1.22943457,2053.8,2053.2,0.67623118]
[1773341547479,0.65450766,2053.7,2053.0,1.89506133]
[1773341548010,1.87188202,2053.6,2053.0,1.89506133]
[1773341548400,0.65450766,2053.6,2053.3,0.0011]
[1773341548600,0.65550766,2053.6,2053.3,0.0011]
[1773341548904,0.001,2053.6,2053.3,0.67733118]
[1773341549108,0.01217562,2053.8,2053.4,0.67623118]
[1773341550216,0.01217562,2053.8,2053.5,1.21743364]
[1773341551900,1.22943544,2053.8,2053.4,1.89367598]
[1773341552202,0.65450766,2053.7,2053.3,1.21864377]
[1773341553609,0.65450766,2053.7,2053.3,0.0011]
[1773341554112,0.65450766,2053.5,2053.3,0.0011]
[1773341555611,2.63658931,2053.5,2053.0,0.0011]
[1773341555812,0.65450766,2053.3,2053.0,0.0011]
[1773341556612,1.872108,2053.3,2053.0,0.0011]
[1773341557916,0.65450766,2053.2,2053.0,0.0011]
[1773341558221,0.65450766,2053.0,2052.5,2.07310929]
[1773341558387,0.65450766,2053.0,2052.3,1.21810734]
[1773341558587,0.65450766,2052.8,2052.3,3.29121663]
[1773341558818,1.87238255,2052.8,2052.3,3.29121663]
[1773341560200,1.87238255,2052.8,2052.5,0.0011]
[1773341560591,1.87238255,2052.8,2052.6,2.07310929]
[1773341561721,1.87233978,2052.9,2052.6,2.07310929]
[1773341562027,1.87228247,2053.0,2052.6,2.07310929]
[1773341562620,0.73426696,2052.9,2052.5,0.0011]
[1773341562986,0.73426696,2052.7,2052.5,0.0011]
[1773341564291,2.5940305,2052.8,2052.5,0.75318458]
[1773341564595,1.37618171,2052.8,2052.5,0.75318458]
[1773341565718,1.95199188,2053.1,2052.5,1.92817949]
[1773341565934,1.21766789,2053.2,2052.6,1.44895757]
[1773341566107,3.32903846,2053.3,2052.7,0.7090547]
[1773341566929,0.01217866,2053.3,2052.7,0.7090547]
[1773341567140,0.01217866,2053.3,2052.8,1.44895757]
[1773341567141,1.22974283,2053.3,2052.8,1.44895757]
[1773341567302,1.22974283,2053.3,2052.8,0.7090547]
[1773341567502,1.22973483,2053.3,2052.9,1.21778946]
[1773341568744,0.01217866,2053.3,2052.9,1.92684416]
[1773341568901,0.01217866,2053.3,2053.0,1.44895757]
[1773341569618,0.01217866,2053.3,2053.0,0.7090547]
[1773341570033,0.01217866,2053.3,2053.1,0.73990287]
[1773341570335,1.21740285,2053.6,2053.1,0.7090547]
[1773341570516,1.22948,2053.8,2053.1,0.7090547]
[1773341570720,1.22948,2053.8,2053.4,1.21749293]
[1773341570721,0.01217562,2053.8,2053.4,1.21749293]
[1773341570941,1.22943783,2053.8,2053.3,1.97738446]
[1773341572131,1.9612231,2053.8,2053.2,1.21756889]
[1773341572338,1.9612231,2053.8,2053.3,0.73890287]
[1773341573012,1.9612231,2053.8,2053.3,1.95643009]
[1773341574038,1.9612231,2053.8,2053.3,0.73890287]
[1773341574333,1.9612231,2053.8,2053.3,1.95645119]
[1773341574504,1.9612231,2053.8,2053.3,0.73890287]
[1773341575333,0.73178527,2053.7,2053.3,0.73890287]
[1773341576336,1.22943783,2053.8,2053.3,1.95643726]
[1773341576544,1.9612231,2053.8,2053.3,1.95643726]
[1773341577317,1.9612231,2053.8,2053.3,0.73890287]
[1773341577518,0.73178527,2053.7,2053.0,0.0011]
[1773341578013,0.73178527,2053.7,2053.0,1.21882625]
[1773341578450,0.73178527,2053.7,2053.0,0.0011]
[1773341579246,0.73178527,2053.7,2053.1,0.73890287]
[1773341579446,0.73178527,2053.5,2053.1,0.73890287]
[1773341580261,0.73178527,2053.2,2052.8,0.01327866]
[1773341580942,0.73178527,2053.0,2052.3,1.23139981]
[1773341581143,0.73178527,2052.9,2052.3,1.23139981]
[1773341581556,1.94963406,2052.8,2052.3,1.23139981]
[1773341582141,1.368,2053.0,2052.3,1.99126498]
[1773341582342,1.94957479,2052.9,2052.3,1.99126498]
[1773341583831,1.368,2053.0,2052.3,1.23139981]
[1773341584032,1.21762934,2053.2,2052.5,0.76096517]
[1773341584550,2.10078527,2053.3,2052.7,0.76096517]
[1773341584744,0.001,2053.1,2052.7,0.76096517]
[1773341585629,0.001,2053.1,2052.8,1.21784879]
[1773341588164,0.001,2053.1,2052.8,0.75986517]
[1773341588529,0.01217866,2053.3,2052.8,0.75986517]
[1773341588731,1.94914759,2053.7,2052.9,0.75986517]
[1773341589741,0.73178527,2053.6,2052.7,0.76096517]
[1773341589937,0.73178527,2053.5,2052.7,0.76096517]
[1773341590138,1.21741397,2053.6,2052.9,0.75986517]
[1773341590766,1.94914245,2053.7,2052.9,0.75986517]
[1773341591061,0.73178527,2053.6,2052.9,0.75986517]
[1773341591239,0.73178527,2053.6,2052.7,0.76096517]
[1773341591447,0.73178527,2053.6,2052.7,1.21898662]
[1773341591863,0.73178527,2053.6,2052.7,1.97885179]
[1773341592237,1.21743364,2053.5,2052.8,0.75986517]
[1773341594338,1.21743364,2053.5,2052.8,0.77204383]
[1773341594548,1.21743364,2053.5,2052.9,1.97765463]
[1773341595339,5.60151986,2053.6,2053.0,0.75986517]
[1773341595340,1.94917349,2053.6,2053.0,0.75986517]
[1773341595535,1.94914717,2053.7,2053.0,0.75986517]
[1773341595750,0.73178527,2053.6,2053.0,0.75986517]
[1773341596238,1.22948096,2053.8,2053.0,0.75986517]
[1773341596440,1.22948096,2053.8,2053.2,0.75986517]
[1773341596869,1.22943962,2053.8,2053.2,0.75986517]
[1773341597176,0.001,2053.3,2053.2,0.75986517]
[1773341598091,0.001,2053.3,2052.9,0.0011]
[1773341598242,0.001,2053.3,2052.9,1.21888906]
[1773341598868,0.73278527,2053.3,2052.9,0.0011]
[1773341600378,0.001,2053.3,2052.9,0.0011]
[1773341600677,0.70027201,2053.3,2052.9,0.0011]
[1773341600866,1.21761153,2053.2,2052.9,0.0011]
[1773341601677,0.69927201,2053.1,2052.7,0.0011]
[1773341603359,0.69927201,2052.9,2052.5,0.0011]
[1773341603564,0.69927201,2052.9,2052.3,0.01328171]
[1773341603769,0.69927201,2052.9,2052.4,0.0011]
[1773341605552,1.21784879,2052.8,2052.4,0.0011]
[1773341605781,1.91709995,2052.9,2052.4,0.0011]
[1773341606583,1.375,2053.0,2052.4,0.68394031]
[1773341606880,1.21761153,2053.2,2052.4,0.68394031]
[1773341607262,1.91688354,2053.2,2052.4,0.68394031]
[1773341607751,1.91688354,2053.2,2052.5,1.21802679]
[1773341609751,0.69927201,2053.1,2052.5,1.21802679]
[1773341610153,0.69927201,2053.1,2052.6,0.0011]
[1773341610379,0.69927201,2053.1,2052.3,1.23140349]
[1773341610548,0.69927201,2053.1,2052.4,0.0011]
[1773341611156,0.69927201,2053.1,2052.6,0.0011]
[1773341611482,0.70027201,2053.1,2052.6,0.0011]
[1773341612066,0.69927201,2052.9,2052.6,0.0011]
[1773341613367,3.33586132,2052.7,2052.4,0.0011]
[1773341613564,0.69927201,2052.6,2052.4,0.0022]
[1773341614484,1.91728181,2052.6,2052.4,0.0022]
[1773341615180,0.69927201,2052.5,2052.2,0.0011]
[1773341616789,0.69927201,2052.3,2052.0,0.0011]
[1773341616966,0.69927201,2052.3,2051.7,1.91350158]
[1773341617558,1.21808614,2052.4,2051.8,0.68284031]
[1773341617763,0.69927201,2052.9,2051.9,0.68284031]
[1773341617984,0.69927201,2052.8,2051.9,0.68284031]
[1773341618163,0.69927201,2052.5,2051.9,0.68284031]
[1773341618363,2.63980018,2052.6,2051.9,0.68284031]
[1773341618660,0.69927201,2052.7,2051.9,0.68284031]
[1773341619281,1.21796745,2052.6,2051.9,0.68284031]
[1773341619485,0.69927201,2052.5,2051.7,1.91348597]
[1773341619890,3.85776763,2052.6,2051.8,0.68284031]
[1773341619891,1.91723946,2052.6,2051.8,0.68284031]
[1773341621572,0.69927201,2052.5,2051.9,0.68284031]
[1773341621978,0.69927201,2052.5,2051.8,1.21840956]
[1773341623298,0.69927201,2052.5,2051.8,1.92878089]
[1773341623672,0.69927201,2052.5,2052.0,0.0011]
[1773341623673,1.21808614,2052.4,2052.0,0.0011]
[1773341623895,0.001,2052.4,2052.0,0.0011]
[1773341624502,0.001,2052.4,2052.0,0.71147133]
[1773341624997,1.23007825,2052.8,2052.1,0.71037133]
[1773341625298,0.01218171,2052.8,2052.1,0.71037133]
[1773341625504,0.01218171,2052.8,2052.2,0.71037133]
[1773341625706,0.01218171,2052.8,2052.4,0.71037133]
[1773341627103,0.001,2053.1,2052.6,0.71037133]
[1773341627870,0.001,2053.1,2052.8,0.71037133]
[1773341631001,0.001,2053.1,2052.9,1.21778946]
[1773341631579,0.001,2053.1,2052.8,0.71037133]
[1773341631776,0.001,2053.1,2052.8,1.928212]
[1773341632799,4.86959818,2053.6,2052.8,1.928212]
[1773341632800,1.89636751,2053.8,2052.9,0.64637145]
[1773341633001,1.21731894,2053.7,2053.1,0.64637145]
[1773341633299,1.21739281,2053.6,2053.1,0.64637145]
[1773341633474,0.66687766,2053.5,2052.9,1.86411545]
[1773341633675,1.88435451,2053.5,2052.9,1.86411545]
[1773341634886,1.8843145,2053.5,2052.9,1.86411545]
[1773341635393,1.88437865,2053.4,2052.9,1.217744]
[1773341635593,0.68005632,2053.3,2052.7,5.51797903]
[1773341635906,0.01317866,2053.3,2053.0,0.0011]
[1773341636390,0.001,2053.1,2053.0,0.0011]
[1773341637400,0.001,2053.1,2053.0,0.64747145]
[1773341637587,0.01317866,2053.3,2053.1,0.64637145]
[1773341637895,0.67905328,2053.8,2053.1,0.64637145]
[1773341638087,0.001,2053.7,2053.1,0.64637145]
[1773341638684,0.67905328,2053.8,2053.0,0.0011]
[1773341638685,0.01217562,2053.8,2053.3,0.64637145]
[1773341639281,0.01217562,2053.8,2053.5,0.64637145]
[1773341640277,0.01217562,2053.8,2053.4,1.21749293]
[1773341642705,0.01217562,2053.8,2053.3,1.86387962]
[1773341643095,0.01217562,2053.8,2053.4,0.64637145]
[1773341643495,0.01217562,2053.8,2053.5,1.21743364]
[1773341645722,1.8963131,2053.8,2053.4,1.21745669]
[1773341646514,0.67905328,2053.8,2053.4,1.21745669]
[1773341648195,1.89631618,2053.8,2053.7,0.0011]
[1773341648399,0.67905328,2053.8,2053.7,0.0011]
[1773341648999,0.01217562,2053.8,2053.7,0.0011]
[1773341650831,1.89630909,2053.8,2053.5,0.0011]
[1773341651134,0.66687766,2053.7,2053.5,0.0011]
[1773341653442,0.01217562,2053.8,2053.5,0.0011]
[1773341653624,1.22943619,2053.8,2053.5,0.0011]
[1773341654297,1.89631385,2053.8,2053.5,0.0011]
[1773341656124,0.01217562,2053.8,2053.5,0.0011]
[1773341658912,1.22943877,2053.8,2053.5,0.0011]
[1773341659111,0.01217562,2053.8,2053.5,0.0011]
[1773341659770,1.11090175,2053.7,2053.5,0.0011]
[1773341660814,1.11090175,2053.7,2053.2,0.0011]
[1773341661713,1.11190175,2053.5,2053.2,0.0011]
[1773341666247,1.11090175,2053.4,2053.2,0.0011]
[1773341669750,1.11090175,2053.3,2053.2,0.0011]
[1773341678571,2.32937293,2053.5,2053.2,0.0011]
[1773341679479,2.32934396,2053.5,2053.2,0.0011]
[1773341679976,0.001,2053.5,2053.2,1.21871153]
[1773341681982,0.001,2053.5,2053.2,0.0011]
[1773341682174,0.001,2053.5,2053.1,0.0011]
[1773341682175,1.11190175,2053.5,2053.1,0.0011]
[1773341682346,1.11190175,2053.5,2052.9,0.0011]
[1773341682347,1.11090175,2053.3,2052.9,0.0011]
[1773341682775,1.11090175,2053.3,2052.9,1.21886971]
[1773341684585,1.11090175,2053.2,2052.9,1.21886971]
[1773341684970,1.11090175,2053.2,2052.9,0.0011]
[1773341686183,1.11090175,2053.2,2053.1,0.0011]
[1773341686497,0.001,2053.3,2053.1,0.0011]
[1773341686802,1.11190175,2053.3,2053.1,0.0011]
[1773341691209,1.11090175,2053.2,2052.9,1.21884767]
[1773341692175,1.11035175,2053.1,2052.6,1.21904699]
[1773341692376,1.11035175,2053.1,2052.6,1.21905805]
[1773341694397,1.11035175,2053.1,2052.6,0.0011]
[1773341694773,1.11035175,2053.0,2052.6,0.0011]
[1773341696568,1.11035175,2053.0,2052.2,4.87234457]
[1773341696569,1.10980175,2052.6,2052.0,1.21942147]
[1773341698303,1.10980175,2052.6,2052.2,0.0011]
[1773341698501,4.87185942,2052.7,2052.2,0.0011]
[1773341698803,1.10980175,2052.4,2052.2,0.0011]
[1773341701373,1.10980175,2052.4,2052.0,0.0011]
[1773341701576,1.10980175,2052.3,2052.0,0.0011]
[1773341701777,1.10980175,2052.6,2052.0,0.0011]
[1773341702690,1.12198346,2052.8,2052.0,0.0011]
[1773341703077,0.01218171,2052.8,2052.0,0.0011]
[1773341703307,0.01317866,2053.3,2052.7,0.26282112]
[1773341703504,0.60824994,2053.4,2052.9,0.26282112]
[1773341703882,0.60824994,2053.4,2052.4,0.26282112]
[1773341704075,0.60824994,2053.4,2052.6,0.26282112]
[1773341704488,0.60824994,2053.2,2052.6,0.26282112]
[1773341704694,0.60824994,2053.2,2052.6,1.48077242]
[1773341704695,0.60824994,2053.1,2052.6,1.48077242]
[1773341705479,0.60824994,2053.2,2052.7,0.32653505]
[1773341705824,0.60824994,2053.2,2052.5,0.32653505]
[1773341705977,0.60824994,2053.0,2052.4,1.21808614]
[1773341706429,0.60824994,2053.0,2052.4,1.54184257]
[1773341706882,0.01317869,2052.9,2052.4,1.54184257]
[1773341707281,0.01317869,2052.9,2052.5,0.32098536]
[1773341708811,0.01317869,2052.9,2052.6,1.21796745]
[1773341710214,0.01317869,2052.9,2052.7,0.0011]
[1773341710911,0.01317869,2052.9,2052.8,0.01217866]
[1773341711408,1.83921809,2052.9,2052.8,0.01217866]
[1773341712012,0.62142863,2052.9,2052.8,0.01217866]
[1773341713819,0.01317869,2052.9,2052.8,0.01217866]
[1773341715489,0.60824994,2052.8,2052.5,0.0011]
[1773341715714,0.60824994,2052.8,2052.3,1.52941271]
[1773341715715,0.60824994,2052.6,2052.3,0.01218171]
[1773341717939,1.21802679,2052.5,2052.3,0.01218171]
[1773341718135,1.82626551,2052.6,2052.3,0.01218171]
[1773341718817,0.01317869,2052.4,2052.3,1.2303144]
[1773341719020,1.82613821,2052.8,2052.3,1.52173027]
[1773341719339,0.60824994,2052.7,2052.3,1.2303144]
[1773341719714,0.60824994,2052.7,2052.3,0.01218171]
[1773341719916,1.21796745,2052.6,2052.3,0.01218171]
[1773341720234,1.82620418,2052.7,2052.3,0.01218171]
[1773341720623,1.2178734,2052.8,2052.4,0.27059431]
[1773341721242,1.89559842,2052.8,2052.3,1.23029374]
[1773341721452,1.21783272,2052.9,2052.4,0.27059431]
[1773341721814,1.89555774,2052.9,2052.4,0.27059431]
[1773341722114,1.89548126,2053.0,2052.5,0.27059431]
[1773341722534,0.67772502,2052.9,2052.3,0.01218171]
[1773341722927,0.67772502,2052.9,2052.5,0.0011]
[1773341725122,1.21784879,2052.8,2052.5,0.0011]
[1773341725326,1.89557381,2052.8,2052.5,0.0011]
[1773341725850,0.67772502,2052.7,2052.5,0.0011]
[1773341727141,1.21784879,2052.8,2052.5,0.0011]
[1773341727440,5.54912018,2052.9,2052.5,0.0011]
[1773341727441,1.8955313,2052.9,2052.5,0.0011]
[1773341728240,1.8955313,2052.9,2052.5,0.04982107]
[1773341729342,1.8955313,2052.9,2052.5,0.0011]
[1773341729653,2.95106157,2052.9,2052.5,0.0011]
[1773341729856,0.67772502,2052.8,2052.5,0.0011]
[1773341730343,0.67772502,2052.5,2052.0,0.0011]
[1773341730518,1.05553027,2052.1,2052.0,0.0011]
[1773341730718,0.67772502,2052.2,2052.0,0.0011]
[1773341731361,1.21826421,2052.1,2051.8,0.50101082]
[1773341731662,2.9515195,2052.1,2051.8,0.50101082]
[1773341731959,0.67772502,2052.0,2051.5,1.21971511]
[1773341732161,0.67772502,2052.0,2051.5,1.21971587]
[1773341732771,0.67772502,2052.0,2051.2,0.25543975]
[1773341733060,0.67772502,2051.6,2051.2,0.0132878]
[1773341733429,1.21862052,2051.5,2051.2,0.0132878]
[1773341734249,1.89633163,2051.6,2051.2,0.0132878]
[1773341734452,1.89621531,2051.8,2051.2,1.48416648]
[1773341734649,1.21849029,2051.8,2051.2,1.4841555]
[1773341734829,0.67772502,2051.7,2051.2,0.0132878]
[1773341735040,0.67772502,2051.7,2051.2,1.23208123]
[1773341735534,1.89628614,2051.6,2051.2,0.0132878]
[1773341736172,1.21854227,2051.7,2051.2,1.48155186]
[1773341736332,1.21854227,2051.7,2051.3,0.04874956]
[1773341736532,1.89626729,2051.7,2051.3,0.04874956]
[1773341737258,1.89626729,2051.7,2051.2,0.0132878]
[1773341737766,0.67772502,2051.6,2051.2,0.0132878]
[1773341740374,1.89630757,2051.6,2051.2,1.23208152]
[1773341741480,1.89630757,2051.6,2051.2,0.0132878]
[1773341742173,1.89874017,2051.8,2051.3,1.21873933]
[1773341743163,0.68025304,2051.7,2051.2,1.23203983]
[1773341743554,0.68025304,2052.0,2051.3,0.04874957]
[1773341744076,0.68025304,2052.0,2051.2,1.23203983]
[1773341744273,1.898636,2051.9,2051.2,1.23203983]
[1773341747477,1.898636,2051.9,2051.4,0.0011]
[1773341747658,0.001,2051.7,2051.4,0.0011]
[1773341751095,0.68125304,2051.7,2051.4,0.0011]
[1773341751460,0.68025304,2051.5,2051.1,0.0011]
[1773341751884,0.68025304,2051.5,2051.1,1.21994019]
[1773341752080,0.68125304,2051.7,2051.1,1.21994019]
[1773341752687,1.89975754,2051.7,2051.1,1.21994019]
[1773341753394,1.89975754,2051.7,2051.1,0.0011]
[1773341756309,0.68125304,2051.7,2051.1,1.05760404]
[1773341756603,1.89853754,2052.1,2051.5,1.05650404]
[1773341756805,1.2182845,2052.1,2051.5,2.82550404]
[1773341757000,1.89853754,2052.1,2051.5,1.769]
[1773341757306,0.68025304,2052.0,2051.5,1.769]
[1773341757481,0.0121878,2051.7,2051.1,1.7701]
[1773341759606,1.23069603,2051.7,2051.3,0.0011]
[1773341759908,0.001,2051.5,2051.3,0.0011]
[1773341761286,0.0121878,2051.7,2051.3,0.0011]
[1773341762214,1.23069201,2051.7,2051.3,0.0011]
[1773341762429,1.91094505,2051.7,2051.3,0.0011]
[1773341762720,0.69244084,2051.7,2051.3,0.0011]
[1773341764895,0.68025304,2051.6,2051.3,0.0011]
[1773341769422,1.89884626,2051.6,2051.3,0.0011]
[1773341771798,1.89884626,2051.6,2051.5,0.0011]
[1773341779807,1.89884626,2051.6,2051.2,0.48695152]
[1773341780008,0.624884,2051.4,2051.1,0.0011]
[1773341781870,0.5782073,2051.2,2051.1,0.0011]
[1773341782006,0.5782073,2051.2,2050.9,0.0011]
[1773341783443,0.5782073,2051.0,2050.7,0.01329085]
[1773341783632,1.21897703,2050.9,2050.7,0.01329085]
[1773341783839,1.21897703,2050.9,2050.5,0.0011]
[1773341783840,0.5782073,2050.8,2050.5,0.0011]
[1773341784338,0.5782073,2050.6,2050.3,0.0011]
[1773341786043,1.79738377,2050.6,2050.3,0.0011]
[1773341786546,0.5782073,2050.9,2050.4,0.47397364]
[1773341787142,0.5782073,2050.9,2050.3,0.0011]
[1773341787646,0.5782073,2050.9,2050.3,0.47277984]
[1773341788550,1.79724377,2050.8,2050.4,1.21927428]
[1773341788844,0.5782073,2050.8,2050.4,1.21927428]
[1773341789029,0.5782073,2050.8,2050.4,1.68638465]
[1773341789951,0.5782073,2051.0,2050.5,0.46711037]
[1773341791149,0.5782073,2051.0,2050.3,3.45422201]
[1773341791150,0.5782073,2050.9,2050.3,3.45422201]
[1773341791553,0.5782073,2050.9,2050.3,2.98938736]
[1773341791751,0.5782073,2050.9,2050.4,0.46256493]
[1773341793181,0.5782073,2050.7,2050.3,0.0011]
[1773341793966,10.16303993,2051.4,2050.4,0.45804339]
[1773341793967,1.79707972,2051.1,2050.4,0.45804339]
[1773341794270,0.5782073,2051.0,2050.4,0.45804339]
[1773341795533,0.5782073,2051.0,2050.6,0.4535456]
[1773341796242,1.81019716,2051.2,2050.6,0.4546456]
[1773341796442,0.5782073,2051.1,2050.6,0.4546456]
[1773341797563,0.5782073,2051.1,2050.7,1.66816732]
[1773341797958,0.01319085,2051.2,2050.8,0.44907141]
[1773341798767,0.5782073,2051.6,2050.8,0.44684312]
[1773341799062,0.56655916,2051.7,2051.0,0.44684312]
[1773341799264,0.56655916,2051.7,2051.2,0.44462068]
[1773341799460,1.14476646,2051.7,2051.2,0.44462068]
[1773341799675,1.14476646,2051.7,2051.3,1.21873933]
[1773341801540,1.14476646,2051.7,2051.3,1.65931805]
[1773341801762,0.56655916,2051.7,2051.3,1.65931805]
[1773341802374,0.56655916,2051.7,2051.4,0.43837273]
[1773341803854,1.12695669,2051.7,2051.3,0.43617252]
[1773341805549,0.32208119,2051.7,2051.3,0.18731139]
[1773341806780,0.32208119,2051.7,2051.4,1.79507625]
[1773341808095,0.19808902,2051.7,2051.5,0.57639633]
[1773341808250,1.77953118,2052.4,2051.7,0.57639633]
[1773341808456,1.79073678,2052.3,2051.7,0.57639633]
[1773341808676,0.56039753,2052.2,2051.5,2.34439633]
[1773341808893,0.56039753,2052.0,2051.6,1.21856112]
[1773341809385,1.7786054,2052.2,2051.7,0.57639633]
[1773341810675,1.77860912,2052.2,2051.7,0.57639633]
[1773341810859,1.81664803,2052.0,2051.5,1.81820045]
[1773341811189,0.59832445,2052.0,2051.6,0.59957993]
[1773341811887,0.59832445,2052.0,2051.4,1.81824538]
[1773341812096,0.59832445,2052.0,2051.5,0.59957993]
[1773341812485,0.59832445,2051.8,2051.3,0.59957993]
[1773341812994,0.59832445,2051.8,2051.4,1.81825985]
[1773341813560,4.87282641,2052.2,2051.4,1.81825985]
[1773341813561,0.59832445,2052.1,2051.4,1.81825985]
[1773341813876,0.59832445,2052.1,2051.5,0.59957993]
[1773341814896,0.59832445,2052.1,2051.3,0.59957993]
[1773341814897,0.59832445,2051.8,2051.3,0.59957993]
[1773341815977,0.59832445,2051.8,2051.2,1.23096944]
[1773341816292,0.27488865,2051.7,2051.2,1.83054937]
[1773341816477,0.27488865,2051.7,2051.2,0.0121878]
[1773341816478,0.59832445,2051.6,2051.2,0.0121878]
[1773341816676,0.59832445,2051.6,2051.2,1.23098123]
[1773341816882,0.59832445,2051.6,2051.2,1.83056116]
[1773341817874,0.27488865,2051.7,2051.2,1.83056116]
[1773341819299,0.27488865,2051.7,2051.3,0.59957993]
[1773341820177,0.27488865,2051.7,2051.4,0.60067993]
[1773341820376,0.001,2051.5,2051.4,0.60067993]
[1773341820686,0.27488865,2051.7,2051.5,0.59957993]
[1773341820899,0.27488865,2051.7,2051.6,1.21856112]
[1773341821089,0.27488865,2051.7,2051.6,1.81814105]
[1773341821467,0.59832445,2052.2,2051.7,0.59957993]
[1773341822517,0.01218475,2052.3,2051.7,0.59957993]
[1773341823085,0.01218475,2052.3,2051.9,0.59957993]
[1773341823399,0.59832445,2052.2,2051.8,1.21844234]
[1773341824503,0.59832445,2052.2,2051.7,3.59003558]
[1773341825026,1.81658866,2052.1,2051.6,0.59957993]
[1773341825369,0.59832445,2052.1,2051.6,0.59957993]
[1773341825695,0.6105092,2052.3,2051.6,0.59957993]
[1773341825896,0.6105092,2052.3,2051.8,0.59957993]
[1773341826395,0.01218475,2052.3,2051.8,0.59957993]
[1773341826969,0.01218475,2052.3,2051.9,1.21838296]
[1773341827164,0.01218475,2052.3,2051.9,1.81796289]
[1773341827363,0.01218475,2052.3,2052.0,0.59957993]
[1773341828200,0.6105092,2052.3,2051.9,1.21838296]
[1773341828669,0.6105092,2052.3,2051.9,1.81796289]
[1773341829213,0.6105092,2052.3,2052.0,0.59957993]
[1773341829214,0.01218475,2052.3,2052.0,0.59957993]
[1773341830016,0.01218475,2052.3,2051.9,1.21838296]